{"text_format":"1","workbook":"xlsx","n_sheets":2,"sheets":["九九表","効果音"],"not_rendered":{"charts":0,"images":1,"macros":1,"external_links":0,"defined_names":12,"comments":0,"pivot_tables":0},"unopened":[],"bounds":{"document_bytes":16777216,"sheet_cells":100000,"rows_first":2000,"rows_last":500,"rows_between":2000,"halvings":0,"cell_chars":16384,"cell_head_chars":4096},"cells_cut":0,"cells_raw":0,"read":"whole","date_system":"1900"}

{"sheet":"九九表","index":0,"n_rows":106,"n_cols":30,"rows_kept":106,"cut":false,"hidden":false,"merged":[[3,28,5,28],[3,29,5,29],[3,24,5,24],[6,3,9,3],[5,18,8,18],[3,20,5,20],[3,23,5,23],[3,21,5,21]]}
[]
[]
[]
[null,null,null,null,null,0,1,2,3,4,5,6,7,8,9,{"$f":"COUNT($F$4:$O$4)","v":10},"個","横の数字","ランダム",null,"横の数字\n並べ替えも","乱数の値Y",null,"縦の数字\n並べ替えも","乱数の値T",null,null,null,"乱数の値","乱数の関数"]
[null,null,null,null,"九九表 かける数"]
[null,null,null,null,"×",null,null,null,null,null,null,null,null,null,null,null,null,null,"縦の数字"]
[null,null,0,"かけられる数",null,null,null,null,null,null,null,null,null,null,null,null,"効果音",null,null,null,0,0.29562730217927846,null,3,4.2202981870460232E-2,null,null,null,null,{"$f":"RAND()","v":0.67820862109403957}]
[null,null,1,null,null,null,null,null,null,null,null,null,null,null,null,null,"出す",null,null,null,8,0.46429185037187237,null,1,0.12473946753316822,null,null,null,null,{"$f":"RAND()","v":7.7884128582141221E-2}]
[null,null,2,null,null,null,null,null,null,null,null,null,null,null,null,null,null,null,null,null,9,0.51888721573963981,null,6,0.13388031674330014,null,null,null,null,0.65837356186960705]
[null,null,3,null,null,null,null,null,null,null,null,null,null,null,null,null,null,null,"ランダム",null,3,0.62819550787132861,null,5,0.41485512231413124,null,null,null,null,0.69549256677154003]
[null,null,4,null,null,null,null,null,null,null,null,null,null,null,null,null,null,null,null,null,6,0.72868242579793008,null,9,0.42622670928226514,null,null,null,null,0.98159428879093491]
[null,null,5,null,null,null,null,null,null,null,null,null,null,null,null,null,null,null,null,null,1,0.75217049693672156,null,7,0.45891152205708952,null,null,null,null,0.46725623582923426]
[null,null,6,null,null,null,null,null,null,null,null,null,null,null,null,null,null,null,null,null,4,0.83290967965673113,null,2,0.52469731916860263,null,null,null,null,0.45559872943410784]
[null,null,7,null,null,null,null,null,null,null,null,null,null,null,null,null,null,null,null,null,2,0.85663622822492413,null,4,0.80933336966617264,null,null,null,null,0.48777401057298952]
[null,null,8,null,null,null,null,null,null,null,null,null,null,null,null,null,null,null,null,null,7,0.95807058945271872,null,0,0.87839468455653369,null,null,null,null,0.35126464350614472]
[null,null,9,null,null,null,null,null,null,null,null,null,null,null,null,null,null,null,null,null,5,0.97197131111385882,null,8,0.89012298246820998,null,null,null,null,0.51328065761954522]
[null,null,{"$f":"COUNT($C$7:$C$16)","v":10},null,null,null,null,null,null,null,null,null,null,null,null,null,null,null,null,null,null,null,null,null,null,null,null,null,null,0.9526900759795035]
[null,null,"個",null,null,null,null,null,null,null,null,null,null,null,null,null,null,null,null,null,null,null,null,null,null,null,null,null,null,0.60236288993201692]
[null,null,null,null,null,null,null,null,null,null,null,null,null,null,null,null,null,null,null,null,null,null,null,null,null,null,null,null,null,0.41379255727813469]
[null,null,null,null,"×",{"$f":"F6","v":0},{"$f":"G6","v":0},0,0,0,0,0,0,0,0,null,null,null,null,null,null,null,null,null,null,null,null,null,null,6.6577954367571079E-2]
[null,null,null,null,{"$f":"E7","v":0},{"$f":"$E21*F$6","v":0},{"$f":"$E21*G$6","v":0},{"$f":"$E21*H$6","v":0},0,0,0,0,0,0,0,null,null,null,null,null,null,null,null,null,null,null,null,null,null,0.3242263687097221]
[null,null,null,null,{"$f":"E8","v":0},{"$f":"$E22*F$6","v":0},0,0,0,0,0,0,0,0,0,null,null,null,null,null,null,null,null,null,null,null,null,null,null,0.22298770422737058]
[null,null,null,null,0,0,0,0,0,0,0,0,0,{"$f":"$E23*N$6","v":0},0,null,null,null,null,null,null,null,null,null,null,null,null,null,null,0.3289411975794484]
[null,null,null,null,0,0,0,0,0,0,0,0,0,0,0,null,null,null,null,null,null,null,null,null,null,null,null,null,null,4.4587675265084226E-3]
[null,null,null,null,0,0,0,0,0,0,0,0,0,0,0,null,null,null,null,null,null,null,null,null,null,null,null,null,null,0.22945001005302956]
[null,null,null,null,0,0,0,0,0,0,0,0,0,0,0,null,null,null,null,null,null,null,null,null,null,null,null,null,null,0.84466870306443997]
[null,null,null,null,0,0,0,0,0,0,0,0,0,0,0,null,null,null,null,null,null,null,null,null,null,null,null,null,null,0.38330815795320672]
[null,null,null,null,0,0,0,0,0,0,0,0,0,0,0,null,null,null,null,null,null,null,null,null,null,null,null,null,null,0.27263299913956529]
[null,null,null,null,0,0,0,0,0,0,0,0,0,0,{"$f":"$E29*O$6","v":0},null,null,null,null,null,null,null,null,null,null,null,null,null,null,0.33536232830774304]
[null,null,null,null,0,0,0,0,0,0,0,0,0,0,{"$f":"$E30*O$6","v":0},null,null,null,null,null,null,null,null,null,null,null,null,null,null,0.57953508479823512]
[null,null,null,null,null,null,null,null,null,null,null,null,null,null,null,null,null,null,null,null,null,null,null,null,null,null,null,null,null,0.9076623545965492]
[null,null,null,null,null,null,null,null,null,null,null,null,null,null,null,null,null,null,null,null,null,null,null,null,null,null,null,null,null,0.44355128216969053]
[null,null,null,null,null,{"$f":"AND(F7=F21,F7<>\"\")","v":false},{"$f":"AND(G7=G21,G7<>\"\")","v":false},false,false,false,false,false,false,false,false,{"$f":"COUNTIF(F33:O33,TRUE)","v":0},null,null,null,null,null,null,null,null,null,null,null,null,null,3.5423537514304493E-2]
[null,null,null,null,null,{"$f":"AND(F8=F22,F8<>\"\")","v":false},{"$f":"AND(G8=G22,G8<>\"\")","v":false},false,false,false,false,false,false,false,false,{"$f":"COUNTIF(F34:O34,TRUE)","v":0},null,null,null,null,null,null,null,null,null,null,null,null,null,0.16626831344413673]
[null,null,null,null,null,{"$f":"AND(F9=F23,F9<>\"\")","v":false},false,false,false,false,false,false,false,false,false,0,null,null,null,null,null,null,null,null,null,null,null,null,null,8.1518567120315466E-2]
[null,null,null,null,null,{"$f":"AND(F10=F24,F10<>\"\")","v":false},false,false,false,false,false,false,false,false,false,0,null,null,null,null,null,null,null,null,null,null,null,null,null,0.63939571947088869]
[null,null,null,null,null,{"$f":"AND(F11=F25,F11<>\"\")","v":false},false,false,false,false,false,false,false,false,false,0,null,null,null,null,null,null,null,null,null,null,null,null,null,0.11731703822529183]
[null,null,null,null,null,{"$f":"AND(F12=F26,F12<>\"\")","v":false},false,false,false,false,false,false,false,false,false,0,null,null,null,null,null,null,null,null,null,null,null,null,null,0.83162967176706326]
[null,null,null,null,null,{"$f":"AND(F13=F27,F13<>\"\")","v":false},false,false,false,false,false,false,false,false,false,0,null,null,null,null,null,null,null,null,null,null,null,null,null,0.37970822866862919]
[null,null,null,null,null,{"$f":"AND(F14=F28,F14<>\"\")","v":false},false,false,false,false,false,false,false,false,false,0,null,null,null,null,null,null,null,null,null,null,null,null,null,0.71684860924668203]
[null,null,null,null,null,{"$f":"AND(F15=F29,F15<>\"\")","v":false},false,false,false,false,false,false,false,false,false,0,null,null,null,null,null,null,null,null,null,null,null,null,null,0.71904119853522985]
[null,null,null,null,null,{"$f":"AND(F16=F30,F16<>\"\")","v":false},false,false,false,false,false,false,false,false,false,0,null,null,null,null,null,null,null,null,null,null,null,null,null,0.5045458372786783]
[null,null,null,null,null,null,null,null,null,null,null,null,null,null,null,{"$f":"SUM(P33:P42)","v":0},null,null,null,null,null,null,null,null,null,null,null,null,null,0.78236182047200264]
[null,null,null,null,null,null,null,null,null,null,null,null,null,null,null,null,null,null,null,null,null,null,null,null,null,null,null,null,null,0.81935071590600894]
[null,null,null,null,null,null,null,null,null,null,null,null,null,null,null,null,null,null,null,null,null,null,null,null,null,null,null,null,null,0.35194015243513888]
[null,null,null,null,null,null,null,null,null,null,null,null,null,null,null,null,null,null,null,null,null,null,null,null,null,null,null,null,null,0.30507277157398682]
[null,null,null,null,null,null,null,null,null,null,null,null,null,null,null,null,null,null,null,null,null,null,null,null,null,null,null,null,null,0.74327516282519523]
[null,null,null,null,null,null,null,null,null,null,null,null,null,null,null,null,null,null,null,null,null,null,null,null,null,null,null,null,null,0.99802775034422819]
[null,null,null,null,null,null,null,null,null,null,null,null,null,null,null,null,null,null,null,null,null,null,null,null,null,null,null,null,null,0.85776048598643528]
[null,null,null,null,null,null,null,null,null,null,null,null,null,null,null,null,null,null,null,null,null,null,null,null,null,null,null,null,null,2.4747721549708057E-2]
[null,null,null,null,null,null,null,null,null,null,null,null,null,null,null,null,null,null,null,null,null,null,null,null,null,null,null,null,null,0.78212140748661452]
[null,null,null,null,null,null,null,null,null,null,null,null,null,null,null,null,null,null,null,null,null,null,null,null,null,null,null,null,null,0.83488000845195798]
[null,null,null,null,null,null,null,null,null,null,null,null,null,null,null,null,null,null,null,null,null,null,null,null,null,null,null,null,null,0.19808121544126811]
[null,null,null,null,null,null,null,null,null,null,null,null,null,null,null,null,null,null,null,null,null,null,null,null,null,null,null,null,null,0.68704443290345263]
[null,null,null,null,null,null,null,null,null,null,null,null,null,null,null,null,null,null,null,null,null,null,null,null,null,null,null,null,null,0.5783178959005334]
[null,null,null,null,null,null,null,null,null,null,null,null,null,null,null,null,null,null,null,null,null,null,null,null,null,null,null,null,null,0.30951429458429092]
[null,null,null,null,null,null,null,null,null,null,null,null,null,null,null,null,null,null,null,null,null,null,null,null,null,null,null,null,null,0.41668172310524909]
[null,null,null,null,null,null,null,null,null,null,null,null,null,null,null,null,null,null,null,null,null,null,null,null,null,null,null,null,null,0.10031129527863747]
[null,null,null,null,null,null,null,null,null,null,null,null,null,null,null,null,null,null,null,null,null,null,null,null,null,null,null,null,null,0.80074759099245285]
[null,null,null,null,null,null,null,null,null,null,null,null,null,null,null,null,null,null,null,null,null,null,null,null,null,null,null,null,null,0.43599991626035439]
[null,null,null,null,null,null,null,null,null,null,null,null,null,null,null,null,null,null,null,null,null,null,null,null,null,null,null,null,null,0.73535235513905239]
[null,null,null,null,null,null,null,null,null,null,null,null,null,null,null,null,null,null,null,null,null,null,null,null,null,null,null,null,null,0.38678311537548205]
[null,null,null,null,null,null,null,null,null,null,null,null,null,null,null,null,null,null,null,null,null,null,null,null,null,null,null,null,null,0.53105143134065946]
[null,null,null,null,null,null,null,null,null,null,null,null,null,null,null,null,null,null,null,null,null,null,null,null,null,null,null,null,null,0.28399402681738395]
[null,null,null,null,null,null,null,null,null,null,null,null,null,null,null,null,null,null,null,null,null,null,null,null,null,null,null,null,null,0.10051047770931565]
[null,null,null,null,null,null,null,null,null,null,null,null,null,null,null,null,null,null,null,null,null,null,null,null,null,null,null,null,null,0.52203571127537551]
[null,null,null,null,null,null,null,null,null,null,null,null,null,null,null,null,null,null,null,null,null,null,null,null,null,null,null,null,null,0.90802402149256545]
[null,null,null,null,null,null,null,null,null,null,null,null,null,null,null,null,null,null,null,null,null,null,null,null,null,null,null,null,null,0.43395743466271186]
[null,null,null,null,null,null,null,null,null,null,null,null,null,null,null,null,null,null,null,null,null,null,null,null,null,null,null,null,null,0.98316174716435922]
[null,null,null,null,null,null,null,null,null,null,null,null,null,null,null,null,null,null,null,null,null,null,null,null,null,null,null,null,null,0.82765487095375689]
[null,null,null,null,null,null,null,null,null,null,null,null,null,null,null,null,null,null,null,null,null,null,null,null,null,null,null,null,null,0.65895871254262894]
[null,null,null,null,null,null,null,null,null,null,null,null,null,null,null,null,null,null,null,null,null,null,null,null,null,null,null,null,null,{"$f":"RAND()","v":6.7083111255569872E-2}]
[null,null,null,null,null,null,null,null,null,null,null,null,null,null,null,null,null,null,null,null,null,null,null,null,null,null,null,null,null,0.56936344933595462]
[null,null,null,null,null,null,null,null,null,null,null,null,null,null,null,null,null,null,null,null,null,null,null,null,null,null,null,null,null,0.65230667067971693]
[null,null,null,null,null,null,null,null,null,null,null,null,null,null,null,null,null,null,null,null,null,null,null,null,null,null,null,null,null,0.15200211054268986]
[null,null,null,null,null,null,null,null,null,null,null,null,null,null,null,null,null,null,null,null,null,null,null,null,null,null,null,null,null,0.11626069045222709]
[null,null,null,null,null,null,null,null,null,null,null,null,null,null,null,null,null,null,null,null,null,null,null,null,null,null,null,null,null,0.55732313559092683]
[null,null,null,null,null,null,null,null,null,null,null,null,null,null,null,null,null,null,null,null,null,null,null,null,null,null,null,null,null,0.2795006782742574]
[null,null,null,null,null,null,null,null,null,null,null,null,null,null,null,null,null,null,null,null,null,null,null,null,null,null,null,null,null,0.95552880172807675]
[null,null,null,null,null,null,null,null,null,null,null,null,null,null,null,null,null,null,null,null,null,null,null,null,null,null,null,null,null,0.707769056138149]
[null,null,null,null,null,null,null,null,null,null,null,null,null,null,null,null,null,null,null,null,null,null,null,null,null,null,null,null,null,0.59910527493987165]
[null,null,null,null,null,null,null,null,null,null,null,null,null,null,null,null,null,null,null,null,null,null,null,null,null,null,null,null,null,0.22036137916887644]
[null,null,null,null,null,null,null,null,null,null,null,null,null,null,null,null,null,null,null,null,null,null,null,null,null,null,null,null,null,0.94985395036347708]
[null,null,null,null,null,null,null,null,null,null,null,null,null,null,null,null,null,null,null,null,null,null,null,null,null,null,null,null,null,0.45517874772946543]
[null,null,null,null,null,null,null,null,null,null,null,null,null,null,null,null,null,null,null,null,null,null,null,null,null,null,null,null,null,0.32291994740116847]
[null,null,null,null,null,null,null,null,null,null,null,null,null,null,null,null,null,null,null,null,null,null,null,null,null,null,null,null,null,0.28625298133901234]
[null,null,null,null,null,null,null,null,null,null,null,null,null,null,null,null,null,null,null,null,null,null,null,null,null,null,null,null,null,0.18080996343507705]
[null,null,null,null,null,null,null,null,null,null,null,null,null,null,null,null,null,null,null,null,null,null,null,null,null,null,null,null,null,0.49730470576949126]
[null,null,null,null,null,null,null,null,null,null,null,null,null,null,null,null,null,null,null,null,null,null,null,null,null,null,null,null,null,0.34389511034163045]
[null,null,null,null,null,null,null,null,null,null,null,null,null,null,null,null,null,null,null,null,null,null,null,null,null,null,null,null,null,0.92307469115468777]
[null,null,null,null,null,null,null,null,null,null,null,null,null,null,null,null,null,null,null,null,null,null,null,null,null,null,null,null,null,0.39296968166778923]
[null,null,null,null,null,null,null,null,null,null,null,null,null,null,null,null,null,null,null,null,null,null,null,null,null,null,null,null,null,0.20970624516397907]
[null,null,null,null,null,null,null,null,null,null,null,null,null,null,null,null,null,null,null,null,null,null,null,null,null,null,null,null,null,0.6039438179566905]
[null,null,null,null,null,null,null,null,null,null,null,null,null,null,null,null,null,null,null,null,null,null,null,null,null,null,null,null,null,0.38923294301773526]
[null,null,null,null,null,null,null,null,null,null,null,null,null,null,null,null,null,null,null,null,null,null,null,null,null,null,null,null,null,0.46740513554377139]
[null,null,null,null,null,null,null,null,null,null,null,null,null,null,null,null,null,null,null,null,null,null,null,null,null,null,null,null,null,0.637267155123736]
[null,null,null,null,null,null,null,null,null,null,null,null,null,null,null,null,null,null,null,null,null,null,null,null,null,null,null,null,null,6.2768598726822278E-2]
[null,null,null,null,null,null,null,null,null,null,null,null,null,null,null,null,null,null,null,null,null,null,null,null,null,null,null,null,null,0.97452326222202101]
[null,null,null,null,null,null,null,null,null,null,null,null,null,null,null,null,null,null,null,null,null,null,null,null,null,null,null,null,null,0.89887817381878077]
[null,null,null,null,null,null,null,null,null,null,null,null,null,null,null,null,null,null,null,null,null,null,null,null,null,null,null,null,null,3.0504346267835381E-2]
[null,null,null,null,null,null,null,null,null,null,null,null,null,null,null,null,null,null,null,null,null,null,null,null,null,null,null,null,null,0.17817243899606772]
[null,null,null,null,null,null,null,null,null,null,null,null,null,null,null,null,null,null,null,null,null,null,null,null,null,null,null,null,null,0.7118943802562866]
[null,null,null,null,null,null,null,null,null,null,null,null,null,null,null,null,null,null,null,null,null,null,null,null,null,null,null,null,null,0.78232134780351792]
[null,null,null,null,null,null,null,null,null,null,null,null,null,null,null,null,null,null,null,null,null,null,null,null,null,null,null,null,null,0.52181170433643498]
[null,null,null,null,null,null,null,null,null,null,null,null,null,null,null,null,null,null,null,null,null,null,null,null,null,null,null,null,null,0.36331498475884938]
[null,null,null,null,null,null,null,null,null,null,null,null,null,null,null,null,null,null,null,null,null,null,null,null,null,null,null,null,null,0.25188889701096306]

{"sheet":"効果音","index":1,"n_rows":19,"n_cols":24,"rows_kept":19,"cut":false,"hidden":false,"merged":[[6,1,7,1],[9,1,10,1],[12,1,13,1]]}
[]
[null,"変更した音階",null,null,null,null,null,null,null,null,null,null,null,null,null,"「エクセルの神髄」のサイトから引用作成しました。"]
[]
[null,"ドレミ","ド1","レ1","ミ1","ファ1","ソ1","ラ1","シ1","ド2","レ2","ミ2","ファ2","ソ2","ラ2","シ2","ド3","レ3","ミ3","ファ3","ソ3","ラ3","シ3","ド4"]
[null,"周波数",200,{"$f":"ROUND(K5/2,0)","v":294},330,349,416,470,494,523,587,659,698,832,940,987,{"$f":"J5*2","v":1046},1174,1318,1396,1664,1880,1974,2092]
[]
[null,"全問正解","ファ2","ファ2","ファ2","ファ2","ソ2","ラ2","ド3"]
[null,null,500,100,100,200,500,550,900]
[]
[null,"正解","ミ2","ド2"]
[null,null,200,700]
[]
[null,"不正解","ド1"]
[null,null,700]
[]
[null,"元の音階"]
[]
[null,"ドレミ","ド1","レ1","ミ1","ファ1","ソ1","ラ1","シ1","ド2","レ2","ミ2","ファ2","ソ2","ラ2","シ2","ド3","レ3","ミ3","ファ3","ソ3","ラ3","シ3","ド4"]
[null,"周波数",{"$f":"ROUND(J19/2,0)","v":262},294,330,349,392,440,494,523,587,659,698,783,880,987,{"$f":"J19*2","v":1046},1174,1318,1396,1566,1760,1974,2092]